[Event "GrandPrix_29.05"]
[Site "Chess.com"]
[Date "2020.05.29"]
[Round "7"]
[White "dosto07"]
[Black "Chessbuster123"]
[Result "1/2-1/2"]
[WhiteElo "1904"]
[BlackElo "1941"]
[TimeControl "600+2"]
[EndTime "12:33:18 PDT"]
[Termination "Game drawn by stalemate"]

1. e4 {[%clk 0:10:01.9]} 1... c5 {[%clk 0:09:59]} 2. Nf3 {[%clk 0:10:01.3]} 2...
d6 {[%clk 0:09:59.4]} 3. Bb5+ {[%clk 0:09:57.4]} 3... Bd7 {[%clk 0:09:58.6]} 4.
Bxd7+ {[%clk 0:09:47.9]} 4... Qxd7 {[%clk 0:10:00.5]} 5. c4 {[%clk 0:09:46.8]}
5... g6 {[%clk 0:09:55.5]} 6. Nc3 {[%clk 0:09:41.8]} 6... Bg7 {[%clk 0:09:55.9]}
7. d4 {[%clk 0:09:41.2]} 7... cxd4 {[%clk 0:09:46.6]} 8. Nxd4 {[%clk 0:09:39.3]}
8... Nf6 {[%clk 0:09:47.1]} 9. f3 {[%clk 0:09:36.2]} 9... Nc6 {[%clk 0:09:44.9]}
10. Be3 {[%clk 0:09:36.4]} 10... O-O {[%clk 0:09:44.7]} 11. Rc1 {[%clk
0:09:35.8]} 11... e6 {[%clk 0:09:39.3]} 12. O-O {[%clk 0:09:30.8]} 12... Rfd8
{[%clk 0:09:26.9]} 13. Qd2 {[%clk 0:08:29.1]} 13... d5 {[%clk 0:09:23.4]} 14.
exd5 {[%clk 0:08:26.3]} 14... exd5 {[%clk 0:09:24]} 15. c5 {[%clk 0:08:27.4]}
15... Rac8 {[%clk 0:09:14.2]} 16. Rfd1 {[%clk 0:08:13.4]} 16... Ne5 {[%clk
0:09:12.9]} 17. Bg5 {[%clk 0:07:18.6]} 17... Rxc5 {[%clk 0:08:36]} 18. Nb3
{[%clk 0:06:57.5]} 18... Rcc8 {[%clk 0:08:17.8]} 19. Bxf6 {[%clk 0:06:42.6]}
19... Bxf6 {[%clk 0:08:16]} 20. Nxd5 {[%clk 0:06:28.8]} 20... Bg7 {[%clk
0:07:54.5]} 21. Rxc8 {[%clk 0:05:33.1]} 21... Rxc8 {[%clk 0:07:53.6]} 22. Qg5
{[%clk 0:05:21.8]} 22... f6 {[%clk 0:07:34]} 23. Qxf6 {[%clk 0:04:47.8]} 23...
Kh8 {[%clk 0:06:52.4]} 24. Qg5 {[%clk 0:04:13.8]} 24... Nc4 {[%clk 0:06:15.9]}
25. Ne3 {[%clk 0:03:40.6]} 25... Qe6 {[%clk 0:05:57.6]} 26. Nxc4 {[%clk
0:03:17]} 26... Qxc4 {[%clk 0:05:53.9]} 27. Rd8+ {[%clk 0:03:12.1]} 27... Rxd8
{[%clk 0:05:48]} 28. Qxd8+ {[%clk 0:03:11.8]} 28... Qg8 {[%clk 0:05:49.4]} 29.
Qd7 {[%clk 0:02:40.6]} 29... Bxb2 {[%clk 0:05:38.3]} 30. Qxb7 {[%clk 0:02:38]}
30... Qe8 {[%clk 0:05:34.8]} 31. Qe4 {[%clk 0:02:30.3]} 31... Qd7 {[%clk
0:05:26]} 32. Qc2 {[%clk 0:02:23.8]} 32... Bd4+ {[%clk 0:05:21.2]} 33. Kf1
{[%clk 0:02:16.7]} 33... Be5 {[%clk 0:05:12]} 34. g3 {[%clk 0:02:06.8]} 34...
Qd5 {[%clk 0:05:03.2]} 35. Kg2 {[%clk 0:02:02.2]} 35... Kg7 {[%clk 0:04:50.9]}
36. Nd2 {[%clk 0:01:59.3]} 36... h5 {[%clk 0:04:39.2]} 37. Ne4 {[%clk
0:01:53.7]} 37... h4 {[%clk 0:04:38.8]} 38. gxh4 {[%clk 0:01:51.6]} 38... Qd8
{[%clk 0:04:36.9]} 39. Ng5 {[%clk 0:01:48.5]} 39... Qf6 {[%clk 0:04:36.5]} 40.
Qe4 {[%clk 0:01:34]} 40... Bd6 {[%clk 0:03:32.7]} 41. Qb7+ {[%clk 0:01:29.8]}
41... Qe7 {[%clk 0:03:22.9]} 42. Qb2+ {[%clk 0:01:17.1]} 42... Qe5 {[%clk
0:03:20.8]} 43. Qxe5+ {[%clk 0:01:09]} 43... Bxe5 {[%clk 0:03:22.7]} 44. f4
{[%clk 0:01:06.7]} 44... Bb2 {[%clk 0:03:12.2]} 45. Kf3 {[%clk 0:01:05.2]} 45...
Kh6 {[%clk 0:03:12.7]} 46. Kg4 {[%clk 0:01:05.8]} 46... Bc3 {[%clk 0:03:10]} 47.
Ne6 {[%clk 0:00:57.6]} 47... Bb2 {[%clk 0:03:07.1]} 48. Nc5 {[%clk 0:00:53.7]}
48... a5 {[%clk 0:03:02.5]} 49. a4 {[%clk 0:00:52]} 49... Ba1 {[%clk 0:02:58.9]}
50. Ne4 {[%clk 0:00:50.6]} 50... Bb2 {[%clk 0:02:53.4]} 51. Ng3 {[%clk 0:00:51]}
51... Ba1 {[%clk 0:02:44.6]} 52. h5 {[%clk 0:00:51.8]} 52... gxh5+ {[%clk
0:02:42.1]} 53. Nxh5 {[%clk 0:00:52.3]} 53... Bb2 {[%clk 0:02:43]} 54. f5 {[%clk
0:00:50.7]} 54... Bd4 {[%clk 0:02:36.8]} 55. h3 {[%clk 0:00:50.6]} 55... Bb2
{[%clk 0:02:36.4]} 56. Ng3 {[%clk 0:00:50.9]} 56... Bc1 {[%clk 0:02:31.7]} 57.
Ne4 {[%clk 0:00:51.8]} 57... Kg7 {[%clk 0:02:31.5]} 58. f6+ {[%clk 0:00:49.3]}
58... Kg6 {[%clk 0:02:29.6]} 59. h4 {[%clk 0:00:50.4]} 59... Bb2 {[%clk
0:02:18.9]} 60. h5+ {[%clk 0:00:51.1]} 60... Kh6 {[%clk 0:02:19.6]} 61. Kf5
{[%clk 0:00:32.7]} 61... Kxh5 {[%clk 0:02:19.2]} 62. Ke6 {[%clk 0:00:32.3]}
62... Kg6 {[%clk 0:02:14.9]} 63. f7 {[%clk 0:00:29.8]} 63... Bg7 {[%clk
0:02:13.5]} 64. Nc5 {[%clk 0:00:28.9]} 64... Kg5 {[%clk 0:01:57.7]} 65. Ke7
{[%clk 0:00:25.7]} 65... Kf5 {[%clk 0:01:55.2]} 66. Nb3 {[%clk 0:00:16.6]} 66...
Ke5 {[%clk 0:01:55]} 67. Nxa5 {[%clk 0:00:16.8]} 67... Kd5 {[%clk 0:01:55]} 68.
Nb3 {[%clk 0:00:17.1]} 68... Kc4 {[%clk 0:01:54.9]} 69. a5 {[%clk 0:00:17.6]}
69... Kb5 {[%clk 0:01:55.9]} 70. f8=Q {[%clk 0:00:15.2]} 70... Bxf8+ {[%clk
0:01:56.5]} 71. Kxf8 {[%clk 0:00:16.1]} 71... Kc6 {[%clk 0:01:56.8]} 72. Ke7
{[%clk 0:00:16.7]} 72... Kc7 {[%clk 0:01:57.9]} 73. Ke6 {[%clk 0:00:17.5]} 73...
Kc6 {[%clk 0:01:59.1]} 74. Ke5 {[%clk 0:00:18.3]} 74... Kb5 {[%clk 0:01:59.8]}
75. Kd4 {[%clk 0:00:18.9]} 75... Kc6 {[%clk 0:02:00.4]} 76. Kc4 {[%clk
0:00:19.6]} 76... Kb7 {[%clk 0:02:01.2]} 77. Kb5 {[%clk 0:00:20.2]} 77... Ka7
{[%clk 0:02:03.1]} 78. a6 {[%clk 0:00:21.1]} 78... Kb8 {[%clk 0:02:02.7]} 79.
Nd4 {[%clk 0:00:22]} 79... Ka8 {[%clk 0:02:03.8]} 80. Kb6 {[%clk 0:00:22.7]}
80... Kb8 {[%clk 0:02:04.5]} 81. Nb5 {[%clk 0:00:23.1]} 81... Ka8 {[%clk
0:02:00.7]} 82. a7 {[%clk 0:00:23.5]} 1/2-1/2

[Event "GrandPrix_29.05"]
[Site "Chess.com"]
[Date "2020.05.29"]
[Round "7"]
[White "larrylarsen"]
[Black "ebret"]
[Result "0-1"]
[WhiteElo "1168"]
[BlackElo "2010"]
[TimeControl "600+2"]
[EndTime "12:33:24 PDT"]
[Termination "ebret won on time"]

1. d4 {[%clk 0:10:01.9]} 1... d5 {[%clk 0:10:00.6]} 2. c4 {[%clk 0:09:59.8]}
2... c6 {[%clk 0:10:01.2]} 3. Nf3 {[%clk 0:09:54.9]} 3... Nf6 {[%clk 0:10:01.7]}
4. e3 {[%clk 0:09:49.9]} 4... Bf5 {[%clk 0:10:02.1]} 5. Bd3 {[%clk 0:09:49.6]}
5... Bg6 {[%clk 0:10:02.7]} 6. Bxg6 {[%clk 0:09:47.1]} 6... hxg6 {[%clk
0:10:04.1]} 7. Qb3 {[%clk 0:09:23.4]} 7... Qc7 {[%clk 0:09:59.5]} 8. Nc3 {[%clk
0:09:17.6]} 8... e6 {[%clk 0:10:00.2]} 9. Bd2 {[%clk 0:08:51.6]} 9... Nbd7
{[%clk 0:10:00.9]} 10. h3 {[%clk 0:08:20.4]} 10... Be7 {[%clk 0:09:46.2]} 11.
Rc1 {[%clk 0:08:08.1]} 11... Qb6 {[%clk 0:09:37.5]} 12. O-O {[%clk 0:07:46.5]}
12... O-O {[%clk 0:09:35.2]} 13. Rfe1 {[%clk 0:07:41.1]} 13... Rab8 {[%clk
0:08:41.2]} 14. Qc2 {[%clk 0:06:33.9]} 14... dxc4 {[%clk 0:08:35.7]} 15. Nd1
{[%clk 0:06:26.2]} 15... Qc7 {[%clk 0:08:04.5]} 16. Qxc4 {[%clk 0:06:16.2]}
16... e5 {[%clk 0:08:05.2]} 17. dxe5 {[%clk 0:05:33.5]} 17... Nxe5 {[%clk
0:08:05.8]} 18. Nxe5 {[%clk 0:05:31.1]} 18... Qxe5 {[%clk 0:08:07.7]} 19. e4
{[%clk 0:05:08.3]} 19... Rfd8 {[%clk 0:07:25.6]} 20. Rc2 {[%clk 0:04:11.4]}
20... Rd4 {[%clk 0:06:53.9]} 21. Qb3 {[%clk 0:03:42.7]} 21... Rxe4 {[%clk
0:06:43.9]} 22. Ne3 {[%clk 0:02:44.3]} 22... Bd6 {[%clk 0:06:22.5]} 23. g3
{[%clk 0:02:41.9]} 23... Nd5 {[%clk 0:05:45.2]} 24. Kg2 {[%clk 0:02:03.8]} 24...
a5 {[%clk 0:04:46.1]} 25. Nc4 {[%clk 0:01:40.5]} 25... Qe6 {[%clk 0:04:03.4]}
26. Rd1 {[%clk 0:01:15]} 26... a4 {[%clk 0:03:28.4]} 27. Qd3 {[%clk 0:01:01.3]}
27... Bc7 {[%clk 0:03:19.2]} 28. a3 {[%clk 0:00:33.2]} 28... Rd8 {[%clk
0:02:58]} 29. Qf3 {[%clk 0:00:19.4]} 29... Nf6 {[%clk 0:01:47.7]} 30. Ne3 {[%clk
0:00:15.8]} 30... Qb3 {[%clk 0:01:37.2]} 31. Rdc1 {[%clk 0:00:14.2]} 31... Be5
{[%clk 0:00:47.4]} 32. Bc3 {[%clk 0:00:08.2]} 32... Bxc3 {[%clk 0:00:47.4]} 33.
Rxc3 {[%clk 0:00:07.2]} 33... Qxb2 {[%clk 0:00:46.3]} 34. Ng4 {[%clk 0:00:08]}
34... Nxg4 {[%clk 0:00:23.9]} 35. hxg4 {[%clk 0:00:06.2]} 35... Re2 {[%clk
0:00:21.4]} 36. Qf4 {[%clk 0:00:03]} 36... Rxf2+ {[%clk 0:00:13.6]} 37. Qxf2
{[%clk 0:00:02.2]} 37... Rd2 {[%clk 0:00:15.1]} 38. R1c2 {[%clk 0:00:02.6]}
38... Rxf2+ {[%clk 0:00:15.5]} 39. Kxf2 {[%clk 0:00:03.7]} 39... Qb6+ {[%clk
0:00:16.7]} 40. Kg2 {[%clk 0:00:04.6]} 40... Qd4 {[%clk 0:00:16.5]} 41. g5
{[%clk 0:00:04.5]} 41... Qd5+ {[%clk 0:00:17.3]} 42. Kf2 {[%clk 0:00:04.8]}
42... Qxg5 {[%clk 0:00:18.3]} 43. Rc4 {[%clk 0:00:05.6]} 43... Qf5+ {[%clk
0:00:18.1]} 44. Kg2 {[%clk 0:00:06.3]} 44... g5 {[%clk 0:00:17.5]} 45. R2c3
{[%clk 0:00:07.3]} 45... g4 {[%clk 0:00:15.9]} 46. Rxa4 {[%clk 0:00:06.2]} 46...
Qd5+ {[%clk 0:00:16.8]} 47. Kh2 {[%clk 0:00:06.1]} 47... Qd2+ {[%clk 0:00:17.7]}
48. Kh1 {[%clk 0:00:06.1]} 48... Qxc3 {[%clk 0:00:18.3]} 49. Rxg4 {[%clk
0:00:06.2]} 49... Qe1+ {[%clk 0:00:18.6]} 50. Kg2 {[%clk 0:00:06.7]} 50... Qe2+
{[%clk 0:00:19.7]} 51. Kh3 {[%clk 0:00:07.8]} 51... Qe6 {[%clk 0:00:17.6]} 52.
a4 {[%clk 0:00:04.2]} 52... g6 {[%clk 0:00:16.8]} 53. a5 {[%clk 0:00:03.5]}
53... g5 {[%clk 0:00:17.5]} 0-1

[Event "GrandPrix_29.05"]
[Site "Chess.com"]
[Date "2020.05.29"]
[Round "7"]
[White "GadimbayliA"]
[Black "Matibar"]
[Result "1/2-1/2"]
[WhiteElo "2507"]
[BlackElo "2407"]
[TimeControl "600+2"]
[EndTime "12:33:26 PDT"]
[Termination "Game drawn by repetition"]

1. e4 {[%clk 0:10:01.9]} 1... d5 {[%clk 0:09:52.2]} 2. exd5 {[%clk 0:10:02.5]}
2... Qxd5 {[%clk 0:09:54.1]} 3. Nc3 {[%clk 0:10:03.8]} 3... Qd8 {[%clk
0:09:55.7]} 4. d4 {[%clk 0:10:04.5]} 4... Nf6 {[%clk 0:09:57.4]} 5. Nf3 {[%clk
0:10:05.5]} 5... Bg4 {[%clk 0:09:58.1]} 6. Be2 {[%clk 0:09:54.6]} 6... c6 {[%clk
0:09:51.3]} 7. O-O {[%clk 0:09:53.2]} 7... Nbd7 {[%clk 0:09:52.3]} 8. Bf4 {[%clk
0:09:53.6]} 8... e6 {[%clk 0:09:51.7]} 9. h3 {[%clk 0:09:55]} 9... Bxf3 {[%clk
0:09:51.7]} 10. Bxf3 {[%clk 0:09:56.1]} 10... Be7 {[%clk 0:09:52.3]} 11. Qe2
{[%clk 0:09:56.5]} 11... O-O {[%clk 0:09:53.6]} 12. Rad1 {[%clk 0:09:56.1]}
12... Nb6 {[%clk 0:09:32.1]} 13. Ne4 {[%clk 0:09:50.7]} 13... Nxe4 {[%clk
0:09:10.3]} 14. Bxe4 {[%clk 0:09:46.8]} 14... Nd5 {[%clk 0:09:12.2]} 15. Bc1
{[%clk 0:09:47.7]} 15... b5 {[%clk 0:09:11.6]} 16. c3 {[%clk 0:09:43.5]} 16...
g6 {[%clk 0:09:08.5]} 17. Bc2 {[%clk 0:09:23.3]} 17... Bg5 {[%clk 0:09:04.4]}
18. f4 {[%clk 0:09:11.9]} 18... Bf6 {[%clk 0:09:05.4]} 19. a4 {[%clk 0:08:50.9]}
19... a6 {[%clk 0:09:05.4]} 20. g4 {[%clk 0:08:47.9]} 20... Re8 {[%clk
0:09:05.2]} 21. Qf3 {[%clk 0:08:47]} 21... Ra7 {[%clk 0:08:31.2]} 22. Kh1 {[%clk
0:08:06.2]} 22... Bg7 {[%clk 0:08:11]} 23. Rf2 {[%clk 0:07:39.2]} 23... Rd7
{[%clk 0:07:49.6]} 24. Rdf1 {[%clk 0:07:23.5]} 24... Qc7 {[%clk 0:05:34.9]} 25.
h4 {[%clk 0:06:37]} 25... c5 {[%clk 0:05:32.2]} 26. dxc5 {[%clk 0:06:36.7]}
26... Qxc5 {[%clk 0:05:32.8]} 27. axb5 {[%clk 0:06:36.7]} 27... axb5 {[%clk
0:05:31.2]} 28. h5 {[%clk 0:05:56.8]} 28... f5 {[%clk 0:04:07.3]} 29. hxg6
{[%clk 0:03:17.7]} 29... hxg6 {[%clk 0:04:06.2]} 30. gxf5 {[%clk 0:03:19.3]}
30... gxf5 {[%clk 0:04:08.1]} 31. Rg1 {[%clk 0:02:26.3]} 31... Kf8 {[%clk
0:03:16.5]} 32. Rfg2 {[%clk 0:02:13]} 32... Bf6 {[%clk 0:03:05.2]} 33. Rg8+
{[%clk 0:02:07.9]} 33... Ke7 {[%clk 0:03:06.4]} 34. Qh5 {[%clk 0:01:59.4]} 34...
Rxg8 {[%clk 0:03:04.3]} 35. Rxg8 {[%clk 0:02:01.3]} 35... Qf2 {[%clk 0:02:35.8]}
36. Rg2 {[%clk 0:01:53.7]} 36... Qa7 {[%clk 0:02:18.4]} 37. Bb3 {[%clk 0:00:59]}
37... Kd6 {[%clk 0:01:53.5]} 38. Rh2 {[%clk 0:00:59.5]} 38... Rg7 {[%clk
0:01:45.5]} 39. Qd1 {[%clk 0:00:54.9]} 39... Qb7 {[%clk 0:01:15.7]} 40. Be3
{[%clk 0:00:52.5]} 40... Rg3 {[%clk 0:00:40.8]} 41. Bf2 {[%clk 0:00:49.6]} 41...
Rg4 {[%clk 0:00:37.7]} 42. Rg2 {[%clk 0:00:29.1]} 42... Qh7+ {[%clk 0:00:13.1]}
43. Kg1 {[%clk 0:00:30]} 43... Qh3 {[%clk 0:00:07.4]} 44. Bxd5 {[%clk
0:00:12.7]} 44... exd5 {[%clk 0:00:07.4]} 45. Rxg4 {[%clk 0:00:14.2]} 45... fxg4
{[%clk 0:00:07.5]} 46. Qe1 {[%clk 0:00:15.7]} 46... Qf3 {[%clk 0:00:05]} 47. Bg3
{[%clk 0:00:15.3]} 47... Kd7 {[%clk 0:00:03.6]} 48. Qf2 {[%clk 0:00:14.2]} 48...
Qxf2+ {[%clk 0:00:03.7]} 49. Kxf2 {[%clk 0:00:16.1]} 49... Ke6 {[%clk
0:00:05.4]} 50. Ke2 {[%clk 0:00:11.6]} 50... Kf5 {[%clk 0:00:05.8]} 51. Kd3
{[%clk 0:00:13.2]} 51... Bg7 {[%clk 0:00:06.6]} 52. Ke3 {[%clk 0:00:14.1]} 52...
Bf6 {[%clk 0:00:07.7]} 53. Kd3 {[%clk 0:00:15.1]} 53... Bg7 {[%clk 0:00:08.8]}
54. Ke3 {[%clk 0:00:16.6]} 54... Bh6 {[%clk 0:00:09.8]} 55. Bh2 {[%clk 0:00:18]}
55... Bg7 {[%clk 0:00:09.3]} 56. Bg3 {[%clk 0:00:19.1]} 1/2-1/2

[Event "GrandPrix_29.05"]
[Site "Chess.com"]
[Date "2020.05.29"]
[Round "7"]
[White "rasmussvane"]
[Black "Lukianoo"]
[Result "1/2-1/2"]
[WhiteElo "2530"]
[BlackElo "2601"]
[TimeControl "600+2"]
[EndTime "12:33:29 PDT"]
[Termination "Game drawn by repetition"]

1. Nf3 {[%clk 0:10:01.9]} 1... Nf6 {[%clk 0:09:59.9]} 2. g3 {[%clk 0:10:02.3]}
2... b5 {[%clk 0:09:59.4]} 3. d4 {[%clk 0:10:00.8]} 3... Bb7 {[%clk 0:10:00]} 4.
Bg2 {[%clk 0:10:00.9]} 4... e6 {[%clk 0:10:01]} 5. Bg5 {[%clk 0:10:02.1]} 5...
c5 {[%clk 0:10:01.2]} 6. c3 {[%clk 0:09:19.5]} 6... h6 {[%clk 0:09:56.2]} 7.
Bxf6 {[%clk 0:09:19.3]} 7... Qxf6 {[%clk 0:09:58.1]} 8. O-O {[%clk 0:09:16.9]}
8... Qd8 {[%clk 0:09:44]} 9. Nbd2 {[%clk 0:08:55.4]} 9... cxd4 {[%clk
0:09:39.7]} 10. Nxd4 {[%clk 0:08:53.8]} 10... Bxg2 {[%clk 0:09:38.7]} 11. Kxg2
{[%clk 0:08:55.7]} 11... Qb6 {[%clk 0:09:35.3]} 12. e4 {[%clk 0:08:45.3]} 12...
Be7 {[%clk 0:09:31.4]} 13. e5 {[%clk 0:08:19.8]} 13... O-O {[%clk 0:09:17.6]}
14. Qf3 {[%clk 0:08:17.1]} 14... Nc6 {[%clk 0:09:14.6]} 15. Nxc6 {[%clk
0:08:17]} 15... dxc6 {[%clk 0:09:13.5]} 16. Ne4 {[%clk 0:07:32.7]} 16... Rad8
{[%clk 0:09:09.9]} 17. Rad1 {[%clk 0:07:24.8]} 17... Rd5 {[%clk 0:09:09.6]} 18.
Nf6+ {[%clk 0:07:04.3]} 18... Bxf6 {[%clk 0:09:00.1]} 19. exf6 {[%clk 0:06:11]}
19... g6 {[%clk 0:08:36.2]} 20. Rxd5 {[%clk 0:05:57.5]} 20... cxd5 {[%clk
0:08:38.1]} 21. Rd1 {[%clk 0:05:58.7]} 21... Rc8 {[%clk 0:08:34]} 22. Rd4 {[%clk
0:05:40.1]} 22... Rc4 {[%clk 0:08:23.4]} 23. Qe3 {[%clk 0:05:16.9]} 23... Qd8
{[%clk 0:06:19.6]} 24. Rxc4 {[%clk 0:04:52.9]} 24... bxc4 {[%clk 0:06:19.9]} 25.
Qxa7 {[%clk 0:04:32]} 25... Qxf6 {[%clk 0:06:19.4]} 26. a4 {[%clk 0:04:32.5]}
26... Qf5 {[%clk 0:05:25.2]} 27. h4 {[%clk 0:03:05.7]} 27... Qe4+ {[%clk
0:05:18.5]} 28. Kh2 {[%clk 0:03:05.7]} 28... e5 {[%clk 0:04:56.8]} 29. a5 {[%clk
0:02:29.6]} 29... d4 {[%clk 0:04:54.9]} 30. cxd4 {[%clk 0:02:26.3]} 30... exd4
{[%clk 0:04:47.2]} 31. a6 {[%clk 0:02:27.2]} 31... d3 {[%clk 0:03:56.8]} 32. Qd7
{[%clk 0:00:41.8]} 32... Qa8 {[%clk 0:02:08.7]} 33. Qb7 {[%clk 0:00:16.9]} 33...
Qd8 {[%clk 0:02:08.3]} 34. a7 {[%clk 0:00:16.9]} 34... d2 {[%clk 0:02:08.3]} 35.
a8=Q {[%clk 0:00:18.1]} 35... d1=Q {[%clk 0:02:09.1]} 36. Qbc8 {[%clk
0:00:09.7]} 36... Qxc8 {[%clk 0:01:40.3]} 37. Qxc8+ {[%clk 0:00:11.6]} 37... Kh7
{[%clk 0:01:41.8]} 38. Qxc4 {[%clk 0:00:12.9]} 38... Qf3 {[%clk 0:01:42.6]} 39.
Qd4 {[%clk 0:00:12.7]} 39... Qb3 {[%clk 0:01:41.7]} 40. Qc3 {[%clk 0:00:12.8]}
40... Qa2 {[%clk 0:01:41.8]} 41. Kg1 {[%clk 0:00:12.4]} 41... Qb1+ {[%clk
0:01:41.8]} 42. Kg2 {[%clk 0:00:13.2]} 42... Qe4+ {[%clk 0:01:42.8]} 43. Qf3
{[%clk 0:00:14.2]} 43... Qc4 {[%clk 0:01:43.5]} 44. b3 {[%clk 0:00:15]} 44...
Qe6 {[%clk 0:01:41.9]} 45. b4 {[%clk 0:00:15.7]} 45... Kg8 {[%clk 0:01:40.9]}
46. b5 {[%clk 0:00:16.3]} 46... Kf8 {[%clk 0:01:39.3]} 47. Qb7 {[%clk 0:00:11]}
47... Qd6 {[%clk 0:01:19.8]} 48. b6 {[%clk 0:00:11.4]} 48... Kg7 {[%clk
0:01:19.5]} 49. Kg1 {[%clk 0:00:08.3]} 49... Qd1+ {[%clk 0:01:19.7]} 50. Kh2
{[%clk 0:00:09.4]} 50... Qd4 {[%clk 0:01:12.2]} 51. Kg2 {[%clk 0:00:09.5]} 51...
Qd6 {[%clk 0:01:13.1]} 52. Qc7 {[%clk 0:00:09.5]} 52... Qd5+ {[%clk 0:01:14]}
53. Kg1 {[%clk 0:00:10.3]} 53... Qd1+ {[%clk 0:01:13.2]} 54. Kh2 {[%clk
0:00:11.6]} 54... Qd4 {[%clk 0:01:11.3]} 55. Kg2 {[%clk 0:00:07.8]} 55... Qd5+
{[%clk 0:01:12.2]} 56. Kg1 {[%clk 0:00:07]} 56... Qd1+ {[%clk 0:01:12.3]} 57.
Kh2 {[%clk 0:00:08]} 57... Qd4 {[%clk 0:01:12.6]} 58. Qf4 {[%clk 0:00:04.5]}
58... Qxb6 {[%clk 0:01:12.8]} 59. Qf3 {[%clk 0:00:05.9]} 59... Qd4 {[%clk
0:01:11.7]} 60. Kg2 {[%clk 0:00:07.1]} 60... h5 {[%clk 0:01:12]} 61. Kg1 {[%clk
0:00:08.3]} 61... f6 {[%clk 0:01:08.1]} 62. Kg2 {[%clk 0:00:09.3]} 62... Qe5
{[%clk 0:01:06.7]} 63. Qb7+ {[%clk 0:00:10.4]} 63... Kh6 {[%clk 0:01:06.2]} 64.
Qf3 {[%clk 0:00:12.3]} 64... g5 {[%clk 0:01:05.9]} 65. hxg5+ {[%clk 0:00:13.5]}
65... fxg5 {[%clk 0:01:07.5]} 66. Qf8+ {[%clk 0:00:14.6]} 66... Kg6 {[%clk
0:01:08.6]} 67. Qg8+ {[%clk 0:00:15.8]} 67... Qg7 {[%clk 0:01:09.3]} 68. Qe6+
{[%clk 0:00:16.9]} 68... Qf6 {[%clk 0:01:10.3]} 69. Qg8+ {[%clk 0:00:18.2]}
69... Qg7 {[%clk 0:01:11.7]} 70. Qe6+ {[%clk 0:00:19.1]} 70... Qf6 {[%clk
0:01:12.9]} 71. Qg8+ {[%clk 0:00:20.3]} 71... Qg7 {[%clk 0:01:14.1]} 1/2-1/2

[Event "GrandPrix_29.05"]
[Site "Chess.com"]
[Date "2020.05.29"]
[Round "7"]
[White "arminmusovic"]
[Black "2346PL"]
[Result "1-0"]
[WhiteElo "2251"]
[BlackElo "2096"]
[TimeControl "600+2"]
[EndTime "12:33:29 PDT"]
[Termination "arminmusovic won by resignation"]

1. a3 {[%clk 0:10:01.9]} 1... d5 {[%clk 0:09:49.8]} 2. Nc3 {[%clk 0:10:02.2]}
2... Nf6 {[%clk 0:09:34.4]} 3. d3 {[%clk 0:10:03.2]} 3... d4 {[%clk 0:09:29.9]}
4. Ne4 {[%clk 0:10:03.9]} 4... Nxe4 {[%clk 0:09:30.2]} 5. dxe4 {[%clk
0:10:05.8]} 5... e5 {[%clk 0:09:30.6]} 6. Nf3 {[%clk 0:10:06.8]} 6... Nc6 {[%clk
0:09:28.3]} 7. e3 {[%clk 0:10:08.3]} 7... Bg4 {[%clk 0:09:23.5]} 8. h3 {[%clk
0:10:07.9]} 8... Bh5 {[%clk 0:09:16]} 9. Bb5 {[%clk 0:09:52]} 9... Bc5 {[%clk
0:08:59.9]} 10. Qe2 {[%clk 0:09:44.4]} 10... O-O {[%clk 0:08:49.8]} 11. O-O
{[%clk 0:09:45.1]} 11... Qf6 {[%clk 0:08:32.2]} 12. Bxc6 {[%clk 0:09:27.3]}
12... Qxc6 {[%clk 0:07:09.9]} 13. g4 {[%clk 0:09:04.8]} 13... Bg6 {[%clk
0:07:09]} 14. Nxe5 {[%clk 0:08:51]} 14... Qxe4 {[%clk 0:07:08]} 15. Nd7 {[%clk
0:08:29.7]} 15... Bb6 {[%clk 0:04:51.1]} 16. Nxf8 {[%clk 0:08:17.7]} 16... Rxf8
{[%clk 0:04:53]} 17. Bd2 {[%clk 0:05:37]} 17... Qxc2 {[%clk 0:04:42.5]} 18. exd4
{[%clk 0:05:08.1]} 18... Qxb2 {[%clk 0:03:37.7]} 19. d5 {[%clk 0:04:15.7]} 19...
Qb3 {[%clk 0:03:10.5]} 20. Be3 {[%clk 0:04:00.2]} 20... Bd3 {[%clk 0:02:57.9]}
21. Qd1 {[%clk 0:04:00.8]} 21... Qxd5 {[%clk 0:02:06]} 22. Bxb6 {[%clk
0:03:52.5]} 22... axb6 {[%clk 0:02:07.9]} 23. Re1 {[%clk 0:03:49.6]} 23... h5
{[%clk 0:02:02.7]} 24. Re3 {[%clk 0:03:37.2]} 24... Rd8 {[%clk 0:02:03.5]} 25.
gxh5 {[%clk 0:03:22.9]} 25... Rd6 {[%clk 0:01:25]} 26. Qg4 {[%clk 0:03:12.3]}
26... Bf5 {[%clk 0:01:08.6]} 27. Qg5 {[%clk 0:02:51.6]} 27... Kh7 {[%clk
0:01:08.5]} 28. Rae1 {[%clk 0:02:36.8]} 28... Be6 {[%clk 0:00:59.5]} 29. Re5
{[%clk 0:02:31.4]} 29... Qf3 {[%clk 0:00:55.3]} 30. R5e3 {[%clk 0:02:17.9]}
30... Qd5 {[%clk 0:00:50.2]} 31. Qh4 {[%clk 0:02:17.3]} 31... Qf5 {[%clk
0:00:44.6]} 32. Rg3 {[%clk 0:01:18]} 32... Rd2 {[%clk 0:00:41.3]} 33. Rg5 {[%clk
0:01:14.5]} 33... Qf3 {[%clk 0:00:37.2]} 34. h6 {[%clk 0:00:41]} 34... g6 {[%clk
0:00:22.7]} 35. Rge5 {[%clk 0:00:33.4]} 35... Bd5 {[%clk 0:00:18.3]} 36. Rxd5
{[%clk 0:00:29.4]} 36... Rxd5 {[%clk 0:00:20.2]} 37. Kh2 {[%clk 0:00:17.1]}
37... Rf5 {[%clk 0:00:16.1]} 38. Rf1 {[%clk 0:00:14.6]} 38... g5 {[%clk
0:00:14]} 39. Qg3 {[%clk 0:00:14.9]} 39... Kxh6 {[%clk 0:00:14]} 40. Qxc7 {[%clk
0:00:12.4]} 40... b5 {[%clk 0:00:13]} 41. Qd8 {[%clk 0:00:10.4]} 41... Kh7
{[%clk 0:00:12.2]} 42. Rg1 {[%clk 0:00:09]} 42... Qxf2+ {[%clk 0:00:12.5]} 43.
Rg2 {[%clk 0:00:09.1]} 43... Qf4+ {[%clk 0:00:14.1]} 44. Kh1 {[%clk 0:00:10.5]}
44... Qe5 {[%clk 0:00:10.9]} 45. Qd3 {[%clk 0:00:10.6]} 45... Kh6 {[%clk
0:00:10.5]} 46. Qd2 {[%clk 0:00:10.9]} 46... Rf1+ {[%clk 0:00:10.6]} 47. Rg1
{[%clk 0:00:11.2]} 47... Qe4+ {[%clk 0:00:09.9]} 48. Kh2 {[%clk 0:00:11.9]}
48... Rxg1 {[%clk 0:00:08.2]} 49. Kxg1 {[%clk 0:00:13.8]} 49... Qf3 {[%clk
0:00:06.1]} 50. Qd6+ {[%clk 0:00:14.8]} 50... Kh5 {[%clk 0:00:06.9]} 51. Qd7
{[%clk 0:00:16.3]} 51... Kh4 {[%clk 0:00:05.9]} 52. Qd8 {[%clk 0:00:10.6]} 52...
Kxh3 {[%clk 0:00:04.1]} 53. Qc8+ {[%clk 0:00:11.7]} 53... g4 {[%clk 0:00:04.4]}
54. Qh8+ {[%clk 0:00:12.2]} 1-0